bitfinex/quotes_ETHUSD_20250721
["timestamp","ask_amount","ask_price","bid_price","bid_amount"]
[1753121720561,0.002,3787.4,3787.3,7.21060345]
[1753121721234,0.002,3787.4,3787.3,15.02726098]
[1753121721453,0.002,3787.4,3787.3,16.80723696]
[1753121722072,1e-08,3787.4,3787.3,19.80723696]
[1753121722219,0.002,3788.2,3788.1,3.46514583]
[1753121722421,0.002,3788.2,3788.1,7.71434583]
[1753121722657,0.002,3788.2,3788.1,8.16554583]
[1753121723261,0.002,3788.2,3788.1,7.34024583]
[1753121723723,0.002,3788.2,3788.1,6.88904583]
[1753121723926,0.002,3788.2,3788.1,4.118]
[1753121724125,0.002,3788.2,3788.1,6.75784583]
[1753121724324,0.002,3788.2,3788.1,7.20904583]
[1753121725375,0.7683,3788.2,3787.2,0.8253]
[1753121725533,1.2155,3788.2,3787.3,4.14440403]
[1753121725733,3.85528371,3788.2,3787.6,2.64018309]
[1753121725947,0.38572837,3788.1,3787.7,4.118]
[1753121726342,3.02557835,3788.1,3787.7,4.118]
[1753121726541,0.38572837,3788.1,3787.7,4.118]
[1753121728039,0.38572837,3788.1,3787.8,2.64005491]
[1753121728242,15.2683,3788.2,3787.9,4.117]
[1753121728431,0.7683,3788.2,3787.9,4.117]
[1753121728638,2.63988815,3788.1,3787.4,2.64028456]
[1753121728837,2.63988815,3788.1,3787.5,4.117]
[1753121729037,0.64971022,3788.1,3787.6,2.64019201]
[1753121729582,0.64971022,3788.1,3787.5,2.64026402]
[1753121729798,0.7683,3788.2,3787.7,6.75708134]
[1753121730274,0.7683,3788.2,3787.7,4.117]
[1753121730437,3.08709484,3788.1,3787.8,4.117]
[1753121731063,0.7683,3788.2,3787.8,4.117]
[1753121731860,3.40808293,3788.2,3787.8,4.117]
[1753121732065,3.08705083,3788.1,3787.5,2.64026034]
[1753121732344,0.4472,3788.1,3787.5,2.64026034]
[1753121732558,0.4472,3788.1,3787.6,6.75719329]
[1753121732758,17.90808201,3788.2,3787.6,6.75719329]
[1753121733171,2.6398468,3788.1,3787.6,4.117]
[1753121733376,2.09970072,3788.1,3787.6,4.117]
[1753121733777,4.73956849,3788.1,3787.6,4.117]
[1753121733975,2.09970072,3788.1,3787.6,4.117]
[1753121734145,5.1867563,3788.1,3787.6,4.117]
[1753121734652,2.09970072,3788.1,3787.1,0.4512]
[1753121734960,1.73700007,3788.0,3787.2,4.117]
[1753121735176,1.73700007,3788.0,3786.8,2.64069343]
[1753121735177,0.7678,3787.8,3786.8,2.64069343]
[1753121735343,0.132,3787.3,3786.9,4.117]
[1753121735792,0.132,3787.3,3786.8,2.64075073]
[1753121735971,0.132,3787.3,3787.0,2.64060159]
[1753121736172,0.132,3787.3,3787.1,4.117]
[1753121736745,0.132,3787.3,3786.9,3.09186679]
[1753121736977,0.132,3787.3,3787.0,4.117]
[1753121737442,0.804,3787.2,3786.6,0.133]
[1753121737641,0.804,3787.2,3786.6,2.77386747]
[1753121737879,0.132,3787.1,3786.7,4.116]
[1753121738557,0.132,3787.1,3786.8,2.64070756]
[1753121738764,0.132,3787.1,3786.7,6.75679759]
[1753121739855,0.132,3787.1,3786.8,2.64075172]
[1753121740073,0.132,3787.1,3786.7,6.75680428]
[1753121740372,0.132,3787.1,3786.7,4.116]
[1753121740786,0.132,3787.1,3786.7,6.75681595]
[1753121741481,0.804,3787.2,3786.6,0.001]
[1753121741682,0.132,3786.8,3786.6,0.001]
[1753121741888,0.804,3786.7,3786.6,0.001]
[1753121742090,0.804,3786.7,3786.6,4.117]
[1753121742775,0.804,3786.7,3786.6,6.75789156]
[1753121743094,0.132,3786.8,3786.7,2.64082182]
[1753121743410,0.132,3787.2,3787.0,2.6405972]
[1753121743563,0.132,3787.2,3787.1,4.5672]
[1753121744739,0.132,3787.2,3787.0,2.64058885]
[1753121745015,0.132,3787.2,3787.1,4.116]
[1753121748119,0.132,3787.2,3786.6,2.64187918]
[1753121748457,0.132,3787.2,3786.7,6.75677065]
[1753121748612,0.132,3787.2,3786.7,2.64077065]
[1753121748827,0.132,3787.2,3786.8,4.116]
[1753121749009,0.132,3787.2,3786.9,4.116]
[1753121749222,0.8168,3787.0,3786.9,4.116]
[1753121750393,0.8168,3787.0,3786.9,6.75668235]
[1753121750601,0.8168,3787.0,3786.9,4.116]
[1753121752445,0.132,3787.2,3786.9,6.75668168]
[1753121752609,0.132,3787.2,3786.6,0.001]
[1753121752811,0.357326,3787.1,3786.7,4.116]
[1753121753012,0.132,3786.8,3786.7,3.09810801]
[1753121753199,0.132,3786.8,3786.7,6.75580801]
[1753121754197,0.132,3786.8,3786.7,7.21310801]
[1753121757500,0.132,3786.8,3786.7,6.75580801]
[1753121757896,0.132,3786.8,3786.7,2.64080801]
[1753121758100,0.132,3786.8,3786.7,6.75580801]
[1753121759099,0.132,3786.8,3786.6,0.001]
[1753121759507,0.9115,3786.8,3786.6,0.001]
[1753121759707,0.9115,3786.8,3786.7,4.114]
[1753121760256,6.42032182,3786.7,3786.6,0.001]
[1753121760617,6.84832182,3786.7,3786.6,0.001]
[1753121760826,21.34832182,3786.7,3786.6,0.001]
[1753121761170,18.2795,3786.7,3786.6,0.001]
[1753121761527,20.92032182,3786.7,3786.6,0.001]
[1753121761748,9.76762267,3786.7,3786.6,0.001]
[1753121762045,14.42208946,3786.7,3786.6,0.001]
[1753121762351,28.92208946,3786.7,3786.6,0.001]
[1753121762711,21.89832182,3786.7,3786.6,0.001]
[1753121764259,21.89832182,3786.7,3786.5,1e-08]
[1753121764260,7.97849156,3786.6,3786.5,1e-08]
[1753121764454,10.60602549,3786.6,3786.5,1e-08]
[1753121764619,11.03402549,3786.6,3786.5,1e-08]
[1753121764818,25.53402549,3786.6,3786.5,1e-08]
[1753121765053,23.95002549,3786.6,3786.5,1e-08]
[1753121765648,24.50002549,3786.6,3786.5,1e-08]
[1753121768969,24.07202549,3786.6,3786.5,1e-08]
[1753121769169,24.99513393,3786.6,3786.5,1e-08]
[1753121769468,20.88113393,3786.6,3786.5,1e-08]
[1753121769673,14.5,3786.6,3786.5,1e-08]
[1753121769845,17.5,3786.6,3786.5,1e-08]
[1753121770771,3.0,3786.6,3786.5,1e-08]
[1753121772942,13.55521581,3787.9,3786.5,0.45730001]
[1753121773148,0.132,3786.8,3786.6,0.7958]
[1753121773336,0.132,3786.8,3786.7,0.4573]
[1753121775751,0.132,3786.8,3786.7,3.09812182]
[1753121775966,1.72645168,3787.6,3786.9,2.64066027]
[1753121775967,0.132,3787.3,3786.9,2.64066027]
[1753121776177,0.132,3787.3,3786.8,2.6407347]
[1753121776474,0.132,3787.3,3787.0,0.4522]
[1753121776644,0.132,3787.3,3786.8,3.67562345]
[1753121776978,0.132,3787.3,3787.1,0.4522]
[1753121777674,2.77240345,3787.3,3787.2,0.4522]
[1753121777972,0.132,3787.3,3787.2,0.4522]
[1753121782958,0.132,3787.3,3787.2,1.2224]
[1753121783159,0.132,3787.3,3787.2,2.28649965]
[1753121784585,0.132,3787.3,3787.2,6.39749965]
[1753121784801,0.132,3787.3,3787.2,9.03797282]
[1753121785094,0.002,3787.5,3787.4,3.39123373]
[1753121785255,0.002,3787.5,3787.4,3.41763706]
[1753121785590,0.002,3787.5,3787.4,5.75395481]
[1753121785896,0.002,3787.5,3787.4,5.88595481]
[1753121789781,0.002,3787.5,3787.4,9.99495481]
[1753121790091,0.002,3787.5,3787.4,9.96855148]
[1753121791893,0.002,3787.5,3787.4,8.08443373]
[1753121793690,0.002,3787.5,3787.4,15.10820137]
[1753121793865,0.002,3788.1,3788.0,3.46361552]
[1753121794070,0.002,3789.0,3788.8,2.63931612]
[1753121794375,0.002,3789.0,3788.9,4.9317]
[1753121794964,0.002,3789.0,3788.9,5.3839]
[1753121795165,0.002,3789.0,3788.9,4.5602]
[1753121795497,0.002,3789.0,3788.8,0.02639358]
[1753121795675,0.002,3789.0,3788.9,4.108]
[1753121796679,0.002,3789.0,3788.9,4.5602]
[1753121800205,0.002,3789.0,3788.9,4.107]
[1753121800384,0.002,3789.0,3788.9,4.5592]
[1753121801177,0.002,3789.0,3788.9,5.351]
[1753121801409,0.002,3789.0,3788.9,4.5592]
[1753121803106,0.002,3789.0,3788.9,4.5582]
[1753121803875,0.002,3789.0,3788.5,0.1312]
[1753121804076,0.8169,3788.9,3788.5,0.1312]
[1753121804318,0.1312,3788.8,3788.6,4.105]
[1753121804913,0.1312,3788.8,3788.7,4.105]
[1753121806712,0.1312,3788.8,3788.7,4.5681]
[1753121808390,0.1312,3788.8,3788.7,4.105]
[1753121808579,0.1312,3788.8,3788.3,0.4631]
[1753121808785,0.1312,3788.8,3788.4,4.104]
[1753121808986,0.1312,3788.8,3788.4,4.5671]
[1753121809400,2.77057321,3788.8,3788.4,4.5671]
[1753121810395,0.1312,3788.8,3788.4,4.5671]
[1753121810984,0.1312,3788.8,3788.5,0.4631]
[1753121811192,0.1312,3788.8,3788.6,4.104]
[1753121811514,2.77060573,3788.8,3788.6,4.104]
[1753121811719,0.1312,3788.8,3788.6,4.104]
[1753121811894,0.1312,3788.8,3788.6,4.5671]
[1753121812098,0.1312,3788.8,3788.7,0.4631]
[1753121812516,0.1312,3788.8,3788.7,4.5671]
[1753121813122,0.1312,3788.8,3788.7,4.104]
[1753121813537,2.7705581,3788.8,3788.7,4.104]
[1753121813688,0.7643,3788.7,3787.5,1.2278]
[1753121813887,0.7643,3788.7,3787.6,7.20628632]
[1753121813888,0.1312,3788.2,3787.6,7.20628632]
[1753121814083,0.1312,3788.2,3787.7,0.48950124]
[1753121814408,0.1312,3788.2,3787.9,2.63994253]
[1753121814615,0.1312,3788.2,3788.0,4.5661]
[1753121814926,0.1312,3788.2,3788.1,0.4631]
[1753121815889,0.1312,3788.2,3788.0,4.103]
[1753121816426,0.1312,3788.2,3788.1,4.103]
[1753121817124,14.6312,3788.2,3788.1,4.5661]
[1753121817825,14.6312,3788.2,3788.1,0.4631]
[1753121817987,14.6312,3788.2,3788.1,4.5661]
[1753121818818,14.6312,3788.2,3788.1,4.103]
[1753121820441,14.6312,3788.2,3788.1,4.5661]
[1753121820625,0.002,3789.0,3788.1,6.09260683]
[1753121820961,0.002,3789.0,3788.9,2.63928844]
[1753121821113,0.002,3789.0,3788.9,13.89625608]
[1753121821539,0.002,3789.0,3788.9,7.33558844]
[1753121821738,0.002,3789.0,3788.9,8.41104006]
[1753121822859,0.002,3789.0,3788.9,16.2519077]
[1753121826122,0.1312,3789.8,3788.9,13.61261926]
[1753121826317,0.1312,3790.0,3789.6,2.63876617]
[1753121826544,0.1312,3790.0,3789.7,4.101]
[1753121826745,0.1312,3790.0,3789.7,4.5641]
[1753121826948,0.1312,3790.0,3789.8,0.4631]
[1753121827158,14.6312,3790.0,3789.9,4.101]
[1753121827468,14.6312,3790.0,3789.9,4.5641]
[1753121827960,14.6312,3790.0,3789.4,0.1575894]
[1753121828168,16.09432,3790.0,3789.5,4.5641]
[1753121828375,16.09432,3790.0,3789.6,0.4631]
[1753121828585,16.09432,3790.0,3789.7,4.101]
[1753121828783,1.59432,3790.0,3789.5,0.0263887]
[1753121829073,2.63830292,3790.4,3789.1,3.42500872]
[1753121829074,0.1312,3789.8,3789.6,4.1]
[1753121829230,2.76987266,3789.8,3789.6,4.1]
[1753121829979,0.1312,3789.8,3789.6,4.1]
[1753121830145,0.1312,3789.8,3789.2,0.5943]
[1753121830146,0.1312,3789.8,3789.2,3.23336114]
[1753121830477,2.63866342,3789.8,3789.3,4.1]
[1753121830641,2.77004427,3789.6,3789.3,4.1]
[1753121830985,0.1312,3789.6,3789.3,0.4631]
[1753121831144,0.7805,3789.9,3789.4,4.5631]
[1753121831468,0.1312,3789.8,3789.5,0.4631]
[1753121831631,0.1312,3789.8,3789.6,0.4631]
[1753121831969,0.1312,3790.4,3789.9,2.63855037]
[1753121832267,0.1312,3790.4,3790.0,4.58948522]
[1753121832728,0.1312,3790.4,3790.1,0.4631]
[1753121833359,0.1312,3790.4,3790.2,0.4631]
[1753121833838,0.1312,3790.7,3790.2,0.4631]
[1753121834037,0.1312,3790.7,3790.3,4.099]
[1753121834479,0.004,3790.8,3790.4,0.48948243]
[1753121834681,0.004,3790.8,3790.7,2.63803519]
[1753121834887,0.004,3790.8,3790.7,6.73703519]
[1753121835114,0.004,3790.8,3790.7,7.20013519]
[1753121835288,0.004,3790.8,3790.7,0.4631]
[1753121835583,0.004,3790.8,3790.7,4.099]
[1753121835881,0.004,3790.8,3789.5,0.7768]
[1753121836102,2.63846387,3790.1,3789.5,0.7768]
[1753121836308,2.76966387,3790.1,3789.6,4.098]
[1753121836784,0.1312,3790.1,3789.7,0.468]
[1753121836985,0.1312,3790.1,3789.5,0.908]
[1753121836986,0.1312,3790.1,3789.8,0.468]
[1753121837169,0.1312,3790.1,3789.9,4.098]
[1753121837354,0.1312,3790.1,3790.0,0.468]
[1753121837874,0.9558,3790.5,3790.0,0.468]
[1753121838060,2.63833901,3790.3,3790.0,4.098]
[1753121838259,3.5939944,3790.5,3790.0,4.098]
[1753121838461,3.5939857,3790.5,3790.0,4.098]
[1753121838731,2.63837224,3790.3,3790.0,4.098]
[1753121839008,2.63845281,3790.1,3790.0,4.098]
[1753121839204,2.76965281,3790.1,3790.0,4.098]
[1753121839722,2.63865764,3789.9,3789.2,6.332]
[1753121839893,2.63880556,3789.6,3789.2,6.4632]
[1753121840106,0.1312,3789.7,3789.3,4.098]
[1753121840284,0.1312,3789.7,3789.4,0.468]
[1753121840485,0.1312,3789.7,3789.5,0.468]
[1753121840970,0.8246,3790.5,3789.6,4.591388]
[1753121841317,0.1312,3790.3,3789.8,0.8286]
[1753121841464,0.8301,3790.9,3789.9,4.59138592]
[1753121841663,0.1312,3790.7,3790.5,2.63811298]
[1753121841971,0.1312,3790.7,3790.6,0.468]
[1753121843808,0.1312,3790.7,3790.6,4.097]
[1753121844703,0.1312,3790.7,3790.6,4.565]
[1753121846080,0.1312,3790.7,3790.6,0.468]
[1753121846282,0.1312,3790.7,3790.6,7.20210478]
[1753121846904,0.004,3790.8,3790.6,7.20210478]
[1753121846905,0.004,3790.8,3790.6,7.55980615]
[1753121847111,0.004,3790.8,3790.7,3.10603519]
[1753121847308,0.004,3790.8,3790.6,0.35770137]
[1753121847514,0.004,3790.8,3790.7,4.096]
[1753121847716,0.1352,3790.8,3790.3,0.468]
[1753121847920,0.1352,3790.8,3790.4,4.564]
[1753121848520,0.1352,3790.8,3790.5,0.468]
[1753121848817,0.1352,3790.8,3790.2,0.5992]
[1753121849017,0.1312,3790.5,3790.3,4.564]
[1753121849217,0.004,3790.8,3790.4,0.468]
[1753121849419,0.1352,3790.8,3790.4,3.10624398]
[1753121849915,0.1352,3790.8,3790.5,0.468]
[1753121850113,0.1352,3790.8,3790.6,0.468]
[1753121850322,0.1352,3790.8,3790.6,4.563]
[1753121850522,0.004,3790.8,3790.7,3.92961554]
[1753121850714,0.004,3790.8,3790.7,4.06081554]
[1753121851217,0.004,3790.8,3790.7,4.03443519]
[1753121851420,0.004,3790.8,3790.7,4.06081554]
[1753121851604,0.004,3790.8,3790.7,2.54807443]
[1753121851811,0.004,3790.8,3790.7,5.18610962]
[1753121852123,0.004,3790.8,3790.7,2.54807443]
[1753121852424,0.004,3790.8,3790.7,6.64307443]
[1753121852987,0.004,3790.8,3790.7,5.37787443]
[1753121853328,0.004,3790.8,3790.7,4.563]
[1753121853664,0.004,3790.8,3790.7,0.468]
[1753121853804,0.004,3790.8,3790.7,4.563]
[1753121854127,0.004,3790.8,3790.7,4.58938035]
[1753121854421,0.004,3790.8,3790.1,3.43960847]
[1753121854627,2.63818317,3790.5,3790.2,0.468]
[1753121854828,2.63813251,3790.6,3790.3,0.468]
[1753121855392,2.63813251,3790.6,3789.7,2.63869381]
[1753121855393,0.61814116,3790.6,3789.5,0.468]
[1753121855691,0.8248,3790.1,3789.7,4.094]
[1753121856029,2.63868412,3789.8,3789.4,0.1312]
[1753121856229,0.1312,3789.9,3789.7,4.094]
[1753121856531,0.1312,3789.9,3789.8,0.468]
[1753121857734,0.1312,3789.9,3789.7,4.094]
[1753121858030,0.1312,3789.9,3789.6,0.027388]
[1753121858031,0.1312,3789.9,3789.6,0.001]
[1753121858219,2.63859204,3789.9,3789.8,4.094]
[1753121858586,2.63866942,3789.8,3789.6,0.001]
[1753121858789,3.47103129,3789.7,3789.6,0.001]
[1753121860020,0.8323,3789.7,3789.6,0.001]
[1753121860537,3.47103129,3789.7,3789.6,0.001]
[1753121860896,0.8323,3789.7,3789.6,0.001]
[1753121861098,3.47103129,3789.7,3789.6,0.001]
[1753121861304,0.8323,3789.7,3789.6,0.001]
[1753121861502,3.47103129,3789.7,3789.6,0.001]
[1753121861929,0.7706,3790.1,3789.6,0.001]
[1753121862114,0.1312,3789.8,3789.6,0.469]
[1753121862318,0.1312,3789.8,3789.7,0.468]
[1753121863142,0.1312,3789.8,3789.6,0.001]
[1753121863302,2.63873129,3789.7,3789.6,0.001]
[1753121863636,2.76988191,3789.8,3789.6,0.001]
[1753121864327,0.1312,3789.8,3789.6,2.63978813]
[1753121864524,0.1312,3789.8,3789.7,0.468]
[1753121867049,0.1312,3789.8,3789.7,3.10673129]
[1753121867253,0.1312,3789.8,3789.7,0.468]
[1753121867625,0.1312,3789.8,3789.7,4.562]
[1753121867863,0.1312,3789.8,3789.7,0.468]
[1753121868324,0.1312,3789.8,3789.6,0.001]
[1753121868521,0.1312,3789.8,3789.6,4.095]
[1753121868958,0.1312,3789.8,3789.7,0.46018731]
[1753121869258,2.63846071,3790.1,3789.6,4.50713894]
[1753121869425,0.1312,3790.0,3789.6,4.095]
[1753121869857,0.1312,3790.0,3789.6,4.5288]
[1753121871467,0.1312,3790.0,3789.7,0.4338]
[1753121872162,0.1312,3790.0,3789.6,0.001]
[1753121872369,0.1312,3790.0,3789.7,0.4338]
[1753121873172,0.1312,3790.0,3789.6,4.094]
[1753121873470,3.0,3789.9,3789.6,0.001]
[1753121873762,2.63873129,3789.7,3789.6,0.001]
[1753121873952,3.40933129,3789.7,3789.6,0.001]
[1753121874150,0.7706,3789.7,3789.6,0.001]
[1753121874356,0.7706,3790.0,3789.6,0.001]
[1753121874540,0.1312,3789.7,3789.6,0.4348]
[1753121877065,0.7706,3790.3,3789.6,1.44175112]
[1753121877230,0.1312,3790.2,3789.6,0.027388]
[1753121877430,14.5,3790.1,3789.7,0.4338]
[1753121877633,14.5,3790.1,3789.6,2.66617836]
[1753121877927,14.5,3790.1,3789.8,0.4338]
[1753121878151,0.1312,3790.2,3789.9,3.07238885]
[1753121878357,0.1312,3790.4,3790.0,1.11275643]
[1753121878541,0.1312,3790.4,3790.1,0.4338]
[1753121878748,0.1312,3790.4,3790.1,4.5258]
[1753121878968,0.1312,3790.4,3790.1,0.4338]
[1753121879185,0.1312,3790.4,3790.0,4.092]
[1753121879345,0.1312,3790.2,3789.8,0.4338]
[1753121879534,0.1312,3790.2,3789.7,0.8146]
[1753121879733,0.1312,3790.2,3789.9,0.4338]
[1753121880046,0.1312,3790.2,3789.9,4.5258]
[1753121880377,0.1312,3790.2,3790.0,3.0723047]
[1753121880531,14.5,3790.5,3790.1,2.66483733]
[1753121880736,0.1372,3790.8,3790.2,3.07218319]
[1753121880936,0.1372,3790.8,3790.3,0.02638313]
[1753121881137,14.5,3790.7,3790.4,0.8122]
[1753121881538,14.5,3790.7,3790.5,0.4338]
[1753121881858,0.006,3790.8,3790.6,0.4338]
[1753121882167,0.006,3790.8,3790.7,7.52351554]
[1753121882365,0.006,3790.8,3790.7,7.49713519]
[1753121882752,0.006,3790.8,3790.7,7.93093519]
[1753121882956,0.006,3790.8,3790.7,9.75590735]
[1753121884074,0.006,3790.8,3790.7,6.68407216]
[1753121884379,0.006,3790.8,3790.7,7.93093519]
[1753121884561,0.024,3791.9,3791.1,3.46745685]
[1753121884761,0.024,3791.9,3791.7,2.63733945]
[1753121884961,0.024,3791.9,3791.7,6.75571284]
[1753121885143,0.024,3791.9,3791.7,8.47956884]
[1753121885340,0.024,3791.9,3791.8,2.63726989]
[1753121885545,0.024,3791.9,3791.8,3.09744258]
[1753121885742,0.024,3791.9,3791.8,3.07106989]
[1753121886338,0.024,3791.9,3791.8,3.09744258]
[1753121886537,0.024,3791.9,3791.8,5.3007911]
[1753121886753,0.024,3791.9,3791.8,9.3917911]
[1753121886958,0.024,3791.9,3791.8,9.36541841]
[1753121887149,0.024,3791.9,3791.8,5.27441841]
[1753121887350,0.024,3791.9,3791.8,7.16206989]
[1753121887837,0.024,3791.9,3791.8,3.07106989]
[1753121888043,0.024,3791.9,3791.8,4.55117269]
[1753121888239,0.024,3791.9,3791.8,0.46017269]
[1753121888476,0.024,3791.9,3791.8,4.091]
[1753121888810,0.024,3791.9,3791.8,4.09]
[1753121889271,0.024,3791.9,3791.8,6.72726989]
[1753121889470,0.024,3791.9,3791.8,4.09]
[1753121890604,0.024,3791.9,3791.6,2.63739327]
[1753121890817,0.024,3791.9,3791.8,4.09]
[1753121892906,0.024,3791.9,3791.8,8.36526989]
[1753121894500,0.024,3791.9,3791.8,8.49646989]
[1753121894886,0.024,3791.9,3791.8,4.40646989]
[1753121895086,0.024,3791.9,3791.8,8.11284258]
[1753121895308,0.024,3791.9,3791.8,8.08646989]
[1753121896213,0.004,3792.4,3791.8,8.08646989]
[1753121896214,0.004,3792.4,3792.3,3.38842218]
[1753121896401,0.004,3792.4,3792.3,7.6349914]
[1753121896597,0.004,3792.4,3792.3,8.03942218]
[1753121897109,0.004,3792.4,3792.3,0.1312]
[1753121897309,0.004,3792.4,3792.3,4.089]
[1753121897676,0.004,3792.4,3792.1,2.76823975]
[1753121897872,0.004,3792.4,3792.1,0.1312]
[1753121898074,0.004,3792.4,3792.1,2.79458773]
[1753121898274,0.004,3792.4,3792.0,2.63712242]
[1753121898511,0.1352,3792.4,3792.1,6.7250584]
[1753121898713,0.1352,3792.4,3792.1,6.7250506]
[1753121898875,0.1352,3792.4,3792.1,4.088]
[1753121899295,0.1352,3792.4,3792.0,0.4308]
[1753121899515,0.1352,3792.4,3792.1,4.088]
[1753121900134,0.1352,3792.4,3791.8,2.76845574]
[1753121900279,14.5,3792.3,3791.9,6.72519804]
[1753121900607,14.5,3792.3,3791.9,4.088]
[1753121900814,14.5,3792.3,3791.9,4.114372]
[1753121900986,14.5,3792.3,3792.0,2.6370797]
[1753121901194,14.5,3792.3,3792.1,0.4308]
[1753121901516,14.5,3792.3,3792.2,4.088]
[1753121901807,14.5,3792.3,3792.2,4.5188]
[1753121902012,0.1352,3792.4,3792.2,4.5188]
[1753121903108,0.1352,3792.4,3792.2,4.088]
[1753121903914,0.1352,3792.4,3792.3,0.8236]
[1753121904105,0.1352,3792.4,3792.3,0.4308]
[1753121904625,0.1352,3792.4,3792.1,2.63705484]
[1753121904918,0.1352,3792.4,3792.3,4.088]
[1753121905779,0.1352,3792.4,3792.1,3.06783342]
[1753121905983,0.1352,3792.4,3792.2,4.088]
[1753121906387,0.1352,3792.4,3792.1,0.4308]
[1753121906601,0.1352,3792.4,3792.2,4.088]
[1753121906990,1.59872,3792.4,3792.2,4.087]
[1753121907192,0.1352,3792.4,3792.2,4.087]
[1753121907602,14.5,3792.3,3792.2,4.087]
[1753121908126,14.5,3792.3,3792.0,4.087]
[1753121908502,0.1312,3792.1,3792.0,4.087]
[1753121909692,0.1312,3792.1,3791.4,0.1312]
[1753121909895,0.1312,3791.8,3791.5,4.087]
[1753121910236,16.02909,3792.3,3791.8,2.63725573]
[1753121910395,0.1312,3792.0,3791.9,4.087]
[1753121910595,14.5,3792.3,3792.0,0.4308]
[1753121910808,14.6312,3792.3,3792.0,3.06792804]
[1753121911003,14.6312,3792.3,3791.9,4.087]
[1753121911230,14.6312,3792.3,3792.1,0.4308]
[1753121911536,0.006,3792.4,3792.3,2.63692218]
[1753121911692,0.006,3792.4,3792.3,2.6632914]
[1753121911893,0.006,3792.4,3792.3,3.2252914]
[1753121912095,0.08593322,3792.8,3792.7,3.39114407]
[1753121912430,0.08593322,3792.8,3792.7,7.60934407]
[1753121912593,0.08593322,3792.8,3792.7,8.84415848]
[1753121912928,0.08593322,3792.8,3792.5,0.1312]
[1753121913133,0.08593322,3792.8,3792.2,3.39149171]
[1753121913134,0.08593322,3792.8,3792.6,4.087]
[1753121913347,0.08593322,3792.8,3792.7,6.72364407]
[1753121913630,0.08593322,3792.8,3792.7,4.087]
[1753121914426,0.21713322,3792.8,3792.7,4.087]
[1753121914645,0.7663,3792.7,3792.1,0.1312]
[1753121914794,2.63676126,3792.6,3792.2,4.087]
[1753121914995,0.1312,3792.5,3792.2,4.087]
[1753121915308,14.5,3792.4,3792.1,4.087]
[1753121915810,0.1312,3792.2,3792.1,4.087]
[1753121916113,0.1312,3792.2,3791.6,3.06820108]
[1753121916330,0.1312,3792.2,3791.7,4.086]
[1753121916828,2.76821498,3792.2,3791.6,0.4308]
[1753121917139,0.7542,3792.1,3791.7,4.086]
[1753121917323,2.63714235,3792.0,3791.8,4.086]
[1753121918022,0.1312,3791.8,3791.2,0.1312]
[1753121918195,0.7992,3791.6,3791.3,4.086]
[1753121918397,0.1312,3791.3,3790.7,3.20002549]
[1753121918630,5.63717432,3792.0,3791.9,8.21600094]
[1753121918931,7.07978906,3792.0,3791.9,8.21600094]
[1753121919130,7.62978906,3792.0,3791.9,8.21600094]
[1753121921607,2.63775685,3791.1,3790.3,0.1312]
[1753121921809,17.89125685,3791.1,3790.4,4.086]
[1753121922931,17.89125685,3791.1,3790.1,0.4508]
[1753121923236,17.89125685,3791.1,3790.3,4.086]
[1753121924907,20.89125685,3791.1,3790.1,0.4508]
[1753121925093,2.63751512,3791.5,3790.2,4.087]
[1753121925302,3.18775685,3791.1,3790.2,0.001]
[1753121925529,7.27375685,3791.1,3790.2,0.001]
[1753121926228,21.77375685,3791.1,3790.2,0.001]
[1753121927323,24.77375685,3791.1,3790.2,0.001]
[1753121928214,25.01595685,3791.1,3790.2,0.001]
[1753121928404,3.18831358,3790.3,3790.2,0.001]
[1753121928624,10.51751358,3790.3,3790.2,0.001]
[1753121929135,25.01751358,3790.3,3790.2,1e-08]
[1753121930899,6.56178319,3790.2,3790.1,1e-08]
[1753121931104,6.69472168,3790.2,3790.1,1e-08]
[1753121931738,2.63907948,3789.2,3788.9,0.001]
[1753121931936,10.51827948,3789.2,3788.9,0.001]
[1753121932936,10.71315686,3789.2,3788.9,0.001]
[1753121934357,9.96827948,3789.2,3788.9,0.001]
[1753121935714,10.51827948,3789.2,3788.9,0.001]
[1753121936557,6.43127948,3789.2,3788.9,0.001]
[1753121936743,6.18907948,3789.2,3788.9,0.001]
[1753121936944,6.43127948,3789.2,3788.9,0.001]
[1753121937144,11.44635459,3789.2,3788.9,0.001]
[1753121937758,7.35835459,3789.2,3788.9,0.001]
[1753121937917,11.44635459,3789.2,3788.9,0.001]
[1753121939679,7.35835459,3789.2,3788.9,0.001]
[1753121939881,7.088,3789.2,3788.9,0.4344]
[1753121940077,3.0,3789.2,3788.9,0.4344]
[1753121940280,4.088,3789.2,3789.1,0.4534]
[1753121940442,7.088,3789.2,3789.1,0.4534]
[1753121940862,9.72707948,3789.2,3789.1,0.4534]
[1753121941057,7.088,3789.2,3789.1,0.4534]
[1753121941384,7.088,3789.2,3789.1,0.02]
[1753121941385,9.72707948,3789.2,3789.1,0.02]
[1753121941579,9.72607948,3789.2,3789.1,0.02]
[1753121941945,7.087,3789.2,3789.1,0.02]
[1753121942171,3.0,3789.2,3789.1,1.2731]
[1753121942375,0.2422,3790.1,3789.1,1.2731]
[1753121942580,0.1312,3789.2,3789.1,0.8397]
[1753121942784,0.1312,3789.2,3789.1,3.47884913]